[Event "Early-Titled-Tuesday-Blitz-September-12-2023"]
[Site "Chess.com"]
[Date "2023.09.12"]
[Round "7"]
[White "MasterKroket"]
[Black "ural58"]
[Result "1-0"]
[WhiteElo "2429"]
[BlackElo "2550"]
[TimeControl "180+1"]
[EndTime "9:18:09 PDT"]
[Termination "MasterKroket won by resignation"]

1. e4 {[%clk 0:03:00.9]} 1... d5 {[%clk 0:02:59.2]} 2. exd5 {[%clk 0:03:00.4]}
2... Qxd5 {[%clk 0:02:59.4]} 3. Nc3 {[%clk 0:03:00.7]} 3... Qd6 {[%clk 0:02:59]}
4. d4 {[%clk 0:03:00.5]} 4... c6 {[%clk 0:02:59]} 5. Nf3 {[%clk 0:03:00.2]} 5...
Bf5 {[%clk 0:02:54.6]} 6. Ne5 {[%clk 0:02:59.1]} 6... Nd7 {[%clk 0:02:53.7]} 7.
Nc4 {[%clk 0:02:58.5]} 7... Qc7 {[%clk 0:02:51.4]} 8. g3 {[%clk 0:02:56.5]} 8...
e5 {[%clk 0:02:46.6]} 9. dxe5 {[%clk 0:02:55.5]} 9... O-O-O {[%clk 0:02:46.1]}
10. Nd6+ {[%clk 0:02:52.6]} 10... Bxd6 {[%clk 0:02:44.4]} 11. exd6 {[%clk
0:02:52.6]} 11... Qa5 {[%clk 0:02:38.4]} 12. Be3 {[%clk 0:02:41.4]} 12... Be4
{[%clk 0:02:25.9]} 13. f3 {[%clk 0:02:39.3]} 13... Bf5 {[%clk 0:02:12.8]} 14.
Bd3 {[%clk 0:02:34.5]} 14... Bh3 {[%clk 0:02:05.4]} 15. Kf2 {[%clk 0:02:31.7]}
15... Ngf6 {[%clk 0:02:01.3]} 16. a3 {[%clk 0:02:22.6]} 16... Rhe8 {[%clk
0:01:44.3]} 17. Re1 {[%clk 0:02:20.2]} 17... Qh5 {[%clk 0:01:43]} 18. Kg1 {[%clk
0:02:14.4]} 18... Kb8 {[%clk 0:00:35.7]} 19. Ne4 {[%clk 0:01:58.4]} 19... Nd5
{[%clk 0:00:31.8]} 20. Bd4 {[%clk 0:01:45.1]} 20... f5 {[%clk 0:00:30.3]} 21.
Nd2 {[%clk 0:01:45.2]} 21... Rxe1+ {[%clk 0:00:28.5]} 22. Qxe1 {[%clk 0:01:45]}
22... f4 {[%clk 0:00:23.3]} 23. g4 {[%clk 0:01:43.6]} 23... Bxg4 {[%clk
0:00:22.9]} 24. fxg4 {[%clk 0:01:43.6]} 24... Qxg4+ {[%clk 0:00:23.6]} 25. Kh1
{[%clk 0:01:43.9]} 25... f3 {[%clk 0:00:16.1]} 26. Qg1 {[%clk 0:01:36.7]} 26...
Qf4 {[%clk 0:00:14.3]} 27. Bxa7+ {[%clk 0:01:32]} 27... Ka8 {[%clk 0:00:13.8]}
28. Ne4 {[%clk 0:01:12]} 28... b6 {[%clk 0:00:13.7]} 29. Bxb6 {[%clk 0:01:09.6]}
29... N7xb6 {[%clk 0:00:13.3]} 30. Qg3 {[%clk 0:01:05.8]} 30... Qxg3 {[%clk
0:00:11.1]} 31. hxg3 {[%clk 0:01:05.8]} 31... Nc8 {[%clk 0:00:10.7]} 32. Rf1
{[%clk 0:01:04.3]} 32... Nxd6 {[%clk 0:00:10.9]} 33. Nxd6 {[%clk 0:01:04.9]}
33... Rxd6 {[%clk 0:00:11.2]} 34. Rxf3 {[%clk 0:01:05.6]} 34... g5 {[%clk
0:00:05.7]} 35. Rf8+ {[%clk 0:01:05.4]} 35... Kb7 {[%clk 0:00:06]} 36. Rf7+
{[%clk 0:01:06]} 36... Kb6 {[%clk 0:00:06.6]} 37. Rxh7 {[%clk 0:01:06.6]} 37...
c5 {[%clk 0:00:06.8]} 38. Be4 {[%clk 0:01:05.7]} 38... Ne3 {[%clk 0:00:06.1]}
39. Rb7+ {[%clk 0:01:05.4]} 39... Ka6 {[%clk 0:00:06.2]} 40. b4 {[%clk
0:01:03.1]} 40... cxb4 {[%clk 0:00:04.8]} 41. axb4 {[%clk 0:01:03.8]} 41... Rd2
{[%clk 0:00:04.9]} 42. b5+ {[%clk 0:00:56.3]} 42... Ka5 {[%clk 0:00:04.6]} 43.
b6 {[%clk 0:00:56.4]} 43... Ng4 {[%clk 0:00:04.3]} 44. Bf3 {[%clk 0:00:48.2]}
44... Nf2+ {[%clk 0:00:04.5]} 45. Kg1 {[%clk 0:00:46.8]} 45... g4 {[%clk
0:00:04.8]} 46. Bg2 {[%clk 0:00:41.9]} 46... Nd1 {[%clk 0:00:03.9]} 47. Rb8
{[%clk 0:00:37.3]} 47... Rxc2 {[%clk 0:00:03]} 48. b7 {[%clk 0:00:37]} 48... Ne3
{[%clk 0:00:03.2]} 49. Ra8+ {[%clk 0:00:36.9]} 1-0

[Event "Early-Titled-Tuesday-Blitz-September-12-2023"]
[Site "Chess.com"]
[Date "2023.09.12"]
[Round "7"]
[White "nitpicker"]
[Black "BeautiFullMindChess"]
[Result "0-1"]
[WhiteElo "2264"]
[BlackElo "2199"]
[TimeControl "180+1"]
[EndTime "9:18:11 PDT"]
[Termination "BeautiFullMindChess won on time"]

1. d4 {[%clk 0:03:00.9]} 1... Nf6 {[%clk 0:02:04.6]} 2. c4 {[%clk 0:02:59.8]}
2... g6 {[%clk 0:02:01.9]} 3. Nc3 {[%clk 0:02:58.6]} 3... d6 {[%clk 0:01:59.5]}
4. e4 {[%clk 0:02:56.6]} 4... Bg7 {[%clk 0:01:59.8]} 5. Be2 {[%clk 0:02:56.6]}
5... O-O {[%clk 0:01:59.5]} 6. Nf3 {[%clk 0:02:56.4]} 6... e5 {[%clk 0:01:55]}
7. O-O {[%clk 0:02:55.4]} 7... exd4 {[%clk 0:01:55.9]} 8. Nxd4 {[%clk
0:02:54.8]} 8... Re8 {[%clk 0:01:52.7]} 9. f3 {[%clk 0:02:52.4]} 9... Nc6 {[%clk
0:01:52.9]} 10. Nc2 {[%clk 0:02:41.3]} 10... Nh5 {[%clk 0:01:51.6]} 11. Be3
{[%clk 0:02:29.1]} 11... f5 {[%clk 0:01:50.7]} 12. exf5 {[%clk 0:02:15.7]} 12...
Bxf5 {[%clk 0:01:51.6]} 13. Nd5 {[%clk 0:01:06.2]} 13... Bxc2 {[%clk 0:01:40.3]}
14. Qxc2 {[%clk 0:01:03.7]} 14... Bd4 {[%clk 0:01:12.7]} 15. Bf2 {[%clk
0:00:52.3]} 15... Bxf2+ {[%clk 0:01:01.1]} 16. Rxf2 {[%clk 0:00:52.3]} 16... Nd4
{[%clk 0:01:01.1]} 17. Qd3 {[%clk 0:00:50.6]} 17... c5 {[%clk 0:00:52.7]} 18. g3
{[%clk 0:00:46.9]} 18... Nf6 {[%clk 0:00:42.6]} 19. Nc3 {[%clk 0:00:40.9]} 19...
Qd7 {[%clk 0:00:28.5]} 20. Bf1 {[%clk 0:00:40.4]} 20... Re5 {[%clk 0:00:28.2]}
21. Bg2 {[%clk 0:00:36.1]} 21... Rae8 {[%clk 0:00:28.1]} 22. f4 {[%clk
0:00:29.7]} 22... Re3 {[%clk 0:00:27.9]} 23. Qd2 {[%clk 0:00:30]} 23... a6
{[%clk 0:00:18.4]} 24. Raf1 {[%clk 0:00:26.8]} 24... b5 {[%clk 0:00:18.4]} 25.
h3 {[%clk 0:00:25.7]} 25... b4 {[%clk 0:00:18.1]} 26. Nd5 {[%clk 0:00:24.1]}
26... Nxd5 {[%clk 0:00:18.2]} 27. Bxd5+ {[%clk 0:00:23.8]} 27... Kg7 {[%clk
0:00:19.1]} 28. Kg2 {[%clk 0:00:24]} 28... h5 {[%clk 0:00:18.3]} 29. b3 {[%clk
0:00:17.4]} 29... Qe7 {[%clk 0:00:15.4]} 30. Qd1 {[%clk 0:00:14.7]} 30... Qf6
{[%clk 0:00:14.4]} 31. Bf3 {[%clk 0:00:13.1]} 31... Qe6 {[%clk 0:00:12.4]} 32.
Bd5 {[%clk 0:00:12.7]} 32... Qf6 {[%clk 0:00:12.4]} 33. Bf3 {[%clk 0:00:12.8]}
33... Nf5 {[%clk 0:00:12.7]} 34. Re2 {[%clk 0:00:11.4]} 34... Rxe2+ {[%clk
0:00:12]} 35. Bxe2 {[%clk 0:00:09.6]} 35... Ne3+ {[%clk 0:00:12.3]} 36. Kh2
{[%clk 0:00:09.9]} 36... Nxd1 {[%clk 0:00:13.2]} 37. Bxd1 {[%clk 0:00:10]} 37...
Qb2+ {[%clk 0:00:13.1]} 38. Kg1 {[%clk 0:00:03.2]} 38... Re3 {[%clk 0:00:13.6]}
39. Bf3 {[%clk 0:00:01]} 39... Qd4 {[%clk 0:00:12.4]} 0-1

[Event "Early-Titled-Tuesday-Blitz-September-12-2023"]
[Site "Chess.com"]
[Date "2023.09.12"]
[Round "7"]
[White "Aleksandar-Topalov"]
[Black "ErikRonka"]
[Result "1/2-1/2"]
[WhiteElo "2351"]
[BlackElo "2518"]
[TimeControl "180+1"]
[EndTime "9:18:13 PDT"]
[Termination "Game drawn by repetition"]

1. b3 {[%clk 0:03:00.9]} 1... e5 {[%clk 0:01:04.3]} 2. Bb2 {[%clk 0:03:00]} 2...
d6 {[%clk 0:01:04.6]} 3. d4 {[%clk 0:02:57.1]} 3... Nd7 {[%clk 0:01:04]} 4. c4
{[%clk 0:02:56.4]} 4... Ngf6 {[%clk 0:01:03.1]} 5. Nc3 {[%clk 0:02:56]} 5... g6
{[%clk 0:01:03.3]} 6. g3 {[%clk 0:02:54.3]} 6... Bg7 {[%clk 0:01:03.8]} 7. Bg2
{[%clk 0:02:54.5]} 7... O-O {[%clk 0:01:04.2]} 8. e3 {[%clk 0:02:53]} 8... Re8
{[%clk 0:01:04.4]} 9. Nge2 {[%clk 0:02:52.4]} 9... c6 {[%clk 0:01:04.5]} 10.
dxe5 {[%clk 0:02:46.4]} 10... dxe5 {[%clk 0:01:04]} 11. O-O {[%clk 0:02:46.6]}
11... Qe7 {[%clk 0:01:03.4]} 12. Qc2 {[%clk 0:02:45]} 12... Nc5 {[%clk
0:01:02.2]} 13. Ba3 {[%clk 0:02:42.8]} 13... Bf8 {[%clk 0:00:56.7]} 14. Na4
{[%clk 0:02:35.6]} 14... Nfd7 {[%clk 0:00:54.8]} 15. Nec3 {[%clk 0:02:33.4]}
15... Qe6 {[%clk 0:00:52.3]} 16. Nxc5 {[%clk 0:02:31.2]} 16... Bxc5 {[%clk
0:00:51.6]} 17. Bb2 {[%clk 0:02:27]} 17... Bf8 {[%clk 0:00:41.9]} 18. Rad1
{[%clk 0:02:25.1]} 18... Nf6 {[%clk 0:00:34.2]} 19. Rd2 {[%clk 0:02:18]} 19...
Qe7 {[%clk 0:00:34]} 20. h3 {[%clk 0:02:12.5]} 20... Bf5 {[%clk 0:00:34.2]} 21.
Ne4 {[%clk 0:02:08.9]} 21... Nxe4 {[%clk 0:00:32.6]} 22. Bxe4 {[%clk 0:02:08.9]}
22... Bxh3 {[%clk 0:00:33.2]} 23. Rfd1 {[%clk 0:02:09]} 23... Bg7 {[%clk
0:00:14]} 24. Qd3 {[%clk 0:01:58.1]} 24... Be6 {[%clk 0:00:13.1]} 25. Bg2 {[%clk
0:01:51.5]} 25... Bf6 {[%clk 0:00:13.4]} 26. a4 {[%clk 0:01:32]} 26... Rad8
{[%clk 0:00:13.3]} 27. Qxd8 {[%clk 0:01:28.6]} 27... Rxd8 {[%clk 0:00:12.4]} 28.
Rxd8+ {[%clk 0:01:28.8]} 28... Qxd8 {[%clk 0:00:12.6]} 29. Rxd8+ {[%clk
0:01:29]} 29... Bxd8 {[%clk 0:00:13.5]} 30. Bxe5 {[%clk 0:01:28.8]} 30... Kf8
{[%clk 0:00:11.7]} 31. Kf1 {[%clk 0:01:22.7]} 31... Ke7 {[%clk 0:00:11.9]} 32.
Ke2 {[%clk 0:01:22.7]} 32... Kd7 {[%clk 0:00:11.6]} 33. Kd3 {[%clk 0:01:17.9]}
33... a6 {[%clk 0:00:11.2]} 34. e4 {[%clk 0:01:10.4]} 34... b5 {[%clk
0:00:11.2]} 35. axb5 {[%clk 0:01:02]} 35... axb5 {[%clk 0:00:11.2]} 36. Bd4
{[%clk 0:01:00]} 36... bxc4+ {[%clk 0:00:10.5]} 37. bxc4 {[%clk 0:00:59.8]}
37... Be7 {[%clk 0:00:11.4]} 38. f4 {[%clk 0:00:57.3]} 38... Bg4 {[%clk
0:00:10.9]} 39. Bb6 {[%clk 0:00:48.9]} 39... h5 {[%clk 0:00:11.1]} 40. Bf2
{[%clk 0:00:44.2]} 40... Bd6 {[%clk 0:00:10.8]} 41. e5 {[%clk 0:00:43]} 41...
Be7 {[%clk 0:00:11.4]} 42. Be4 {[%clk 0:00:41.8]} 42... Be6 {[%clk 0:00:09.6]}
43. Kc3 {[%clk 0:00:28.4]} 43... Bg4 {[%clk 0:00:07.3]} 44. Kd3 {[%clk
0:00:23.2]} 44... Bd1 {[%clk 0:00:06.8]} 45. Kd2 {[%clk 0:00:20.7]} 45... Bg4
{[%clk 0:00:06.8]} 46. Kd3 {[%clk 0:00:20.7]} 1/2-1/2

[Event "Early-Titled-Tuesday-Blitz-September-12-2023"]
[Site "Chess.com"]
[Date "2023.09.12"]
[Round "7"]
[White "Tsyhanchuk_Stanislav"]
[Black "Dewarfd"]
[Result "0-1"]
[WhiteElo "2413"]
[BlackElo "2170"]
[TimeControl "180+1"]
[EndTime "9:18:13 PDT"]
[Termination "Dewarfd won on time"]

1. e4 {[%clk 0:03:00.9]} 1... e5 {[%clk 0:02:59.9]} 2. Nf3 {[%clk 0:03:00.3]}
2... Nc6 {[%clk 0:03:00.1]} 3. Bc4 {[%clk 0:03:00.1]} 3... Nf6 {[%clk
0:03:00.4]} 4. d3 {[%clk 0:03:00.3]} 4... Be7 {[%clk 0:02:59.8]} 5. O-O {[%clk
0:02:59.5]} 5... O-O {[%clk 0:02:54.3]} 6. h3 {[%clk 0:02:53.9]} 6... d6 {[%clk
0:02:48.2]} 7. a3 {[%clk 0:02:52.6]} 7... a6 {[%clk 0:02:47]} 8. Be3 {[%clk
0:02:50]} 8... h6 {[%clk 0:02:46.8]} 9. Nbd2 {[%clk 0:02:45.4]} 9... d5 {[%clk
0:02:44]} 10. exd5 {[%clk 0:02:37.9]} 10... Nxd5 {[%clk 0:02:44.5]} 11. Bxd5
{[%clk 0:02:37.1]} 11... Qxd5 {[%clk 0:02:44.2]} 12. Nc4 {[%clk 0:02:36.8]}
12... e4 {[%clk 0:02:38.2]} 13. Ne1 {[%clk 0:02:17.7]} 13... Rd8 {[%clk
0:02:24.7]} 14. Bf4 {[%clk 0:01:59.4]} 14... exd3 {[%clk 0:02:05.2]} 15. Bxc7
{[%clk 0:01:36.8]} 15... Qxc4 {[%clk 0:01:54.9]} 16. cxd3 {[%clk 0:01:19.9]}
16... Qd5 {[%clk 0:01:50]} 17. Bxd8 {[%clk 0:01:19.4]} 17... Bxd8 {[%clk
0:01:49.6]} 18. Nc2 {[%clk 0:01:16.7]} 18... Bc7 {[%clk 0:01:30.2]} 19. Qe2
{[%clk 0:00:37.7]} 19... Bf5 {[%clk 0:01:23.2]} 20. Rad1 {[%clk 0:00:26.7]}
20... Qd6 {[%clk 0:01:14.1]} 21. f4 {[%clk 0:00:24.8]} 21... Rd8 {[%clk
0:01:09.5]} 22. Rf3 {[%clk 0:00:18.2]} 22... Nd4 {[%clk 0:01:01.2]} 23. Nxd4
{[%clk 0:00:17.7]} 23... Qxd4+ {[%clk 0:01:01.9]} 24. Kh1 {[%clk 0:00:18.1]}
24... Bd7 {[%clk 0:00:51.3]} 25. Qf2 {[%clk 0:00:14.8]} 25... Bc6 {[%clk
0:00:46.4]} 26. Qxd4 {[%clk 0:00:13.6]} 26... Rxd4 {[%clk 0:00:46.9]} 27. Re3
{[%clk 0:00:12.6]} 27... Bxf4 {[%clk 0:00:45.8]} 28. Re2 {[%clk 0:00:10.9]}
28... Bg3 {[%clk 0:00:43.4]} 29. Re3 {[%clk 0:00:05.9]} 29... Bf4 {[%clk
0:00:40]} 30. Re2 {[%clk 0:00:04.8]} 30... Bc7 {[%clk 0:00:39.5]} 31. Kg1 {[%clk
0:00:05]} 31... Bb6 {[%clk 0:00:39.2]} 32. Kf1 {[%clk 0:00:04.5]} 32... Bb5
{[%clk 0:00:34.6]} 33. Red2 {[%clk 0:00:02.9]} 33... Rf4+ {[%clk 0:00:33.7]} 34.
Ke2 {[%clk 0:00:03.2]} 34... Rf2+ {[%clk 0:00:32.1]} 35. Ke1 {[%clk 0:00:03.5]}
35... Rf6 {[%clk 0:00:21.3]} 36. Re2 {[%clk 0:00:03]} 36... Bd4 {[%clk 0:00:17]}
37. Kd2 {[%clk 0:00:00.5]} 37... Bxb2 {[%clk 0:00:16.2]} 0-1

[Event "Early-Titled-Tuesday-Blitz-September-12-2023"]
[Site "Chess.com"]
[Date "2023.09.12"]
[Round "7"]
[White "IMTominho"]
[Black "HajiyevKanan"]
[Result "1-0"]
[WhiteElo "2815"]
[BlackElo "2519"]
[TimeControl "180+1"]
[EndTime "9:18:16 PDT"]
[Termination "IMTominho won on time"]

1. g3 {[%clk 0:03:00.9]} 1... Nf6 {[%clk 0:02:59.7]} 2. Bg2 {[%clk 0:03:01.2]}
2... g6 {[%clk 0:03:00.1]} 3. b3 {[%clk 0:03:01.5]} 3... d5 {[%clk 0:03:00.5]}
4. Bb2 {[%clk 0:03:01.9]} 4... Bg7 {[%clk 0:03:01.3]} 5. Nf3 {[%clk 0:03:01.6]}
5... O-O {[%clk 0:03:01.6]} 6. O-O {[%clk 0:03:02.5]} 6... c5 {[%clk 0:03:02.1]}
7. d4 {[%clk 0:02:58.9]} 7... Ne4 {[%clk 0:02:59.2]} 8. e3 {[%clk 0:02:57.5]}
8... Nc6 {[%clk 0:02:58.6]} 9. c3 {[%clk 0:02:57.7]} 9... Bg4 {[%clk 0:02:57.7]}
10. h3 {[%clk 0:02:57.2]} 10... Bxf3 {[%clk 0:02:50.3]} 11. Bxf3 {[%clk
0:02:58.1]} 11... cxd4 {[%clk 0:02:50.7]} 12. cxd4 {[%clk 0:02:55.6]} 12... Qd7
{[%clk 0:02:44.6]} 13. h4 {[%clk 0:02:24.2]} 13... Rac8 {[%clk 0:02:39.1]} 14.
Nd2 {[%clk 0:02:17.6]} 14... Nxd2 {[%clk 0:02:26.7]} 15. Qxd2 {[%clk 0:02:06.9]}
15... Rc7 {[%clk 0:02:24.2]} 16. h5 {[%clk 0:01:13]} 16... Rfc8 {[%clk
0:02:23.4]} 17. hxg6 {[%clk 0:01:11.7]} 17... hxg6 {[%clk 0:02:24.1]} 18. Rac1
{[%clk 0:01:10.6]} 18... Qf5 {[%clk 0:02:15.4]} 19. Kg2 {[%clk 0:01:07.6]} 19...
e6 {[%clk 0:02:01.9]} 20. Rh1 {[%clk 0:01:05.3]} 20... Bf6 {[%clk 0:01:58.6]}
21. Rh3 {[%clk 0:01:04.4]} 21... Ne7 {[%clk 0:01:46.7]} 22. Rxc7 {[%clk
0:01:04.1]} 22... Rxc7 {[%clk 0:01:47.6]} 23. Bc3 {[%clk 0:01:04.5]} 23... Rc8
{[%clk 0:01:39.5]} 24. Rh1 {[%clk 0:01:03.2]} 24... Bg7 {[%clk 0:01:32.5]} 25.
Bb4 {[%clk 0:01:01.9]} 25... Nc6 {[%clk 0:01:32.6]} 26. Rc1 {[%clk 0:00:58.2]}
26... Bf8 {[%clk 0:01:16.3]} 27. Bxf8 {[%clk 0:00:54.9]} 27... Kxf8 {[%clk
0:01:15.8]} 28. b4 {[%clk 0:00:55.8]} 28... a6 {[%clk 0:01:13.8]} 29. Rc5 {[%clk
0:00:49.5]} 29... Kg7 {[%clk 0:01:13.3]} 30. b5 {[%clk 0:00:47.1]} 30... axb5
{[%clk 0:01:07.6]} 31. Rxb5 {[%clk 0:00:48]} 31... Rh8 {[%clk 0:01:05]} 32. Rxb7
{[%clk 0:00:44.5]} 32... Qh3+ {[%clk 0:00:50.8]} 33. Kg1 {[%clk 0:00:43.3]}
33... Qh2+ {[%clk 0:00:49.7]} 34. Kf1 {[%clk 0:00:41.8]} 34... Ra8 {[%clk
0:00:32]} 35. Rb1 {[%clk 0:00:40.1]} 35... Na5 {[%clk 0:00:32.2]} 36. e4 {[%clk
0:00:34.4]} 36... Nc4 {[%clk 0:00:31.3]} 37. Qe2 {[%clk 0:00:32.1]} 37... Ra3
{[%clk 0:00:27.6]} 38. Rb3 {[%clk 0:00:26.4]} 38... Ra5 {[%clk 0:00:18.1]} 39.
exd5 {[%clk 0:00:26]} 39... exd5 {[%clk 0:00:18.8]} 40. Rb4 {[%clk 0:00:26.6]}
40... Ra3 {[%clk 0:00:17.6]} 41. Bxd5 {[%clk 0:00:22.4]} 41... Kh6 {[%clk
0:00:01.8]} 42. Rxc4 {[%clk 0:00:20.6]} 1-0

[Event "Early-Titled-Tuesday-Blitz-September-12-2023"]
[Site "Chess.com"]
[Date "2023.09.12"]
[Round "7"]
[White "jcibarra"]
[Black "SchmakAttack"]
[Result "1-0"]
[WhiteElo "2932"]
[BlackElo "2782"]
[TimeControl "180+1"]
[EndTime "9:18:18 PDT"]
[Termination "jcibarra won on time"]

1. e4 {[%clk 0:03:00.9]} 1... e5 {[%clk 0:02:59.6]} 2. Nf3 {[%clk 0:03:01]} 2...
Nc6 {[%clk 0:03:00]} 3. Nc3 {[%clk 0:03:01.4]} 3... Nf6 {[%clk 0:02:59.9]} 4. h3
{[%clk 0:03:02]} 4... Bb4 {[%clk 0:02:56.1]} 5. Nd5 {[%clk 0:03:02]} 5... Nxd5
{[%clk 0:02:56.2]} 6. exd5 {[%clk 0:03:02.3]} 6... e4 {[%clk 0:02:56.8]} 7. dxc6
{[%clk 0:03:02.6]} 7... exf3 {[%clk 0:02:57.3]} 8. Qxf3 {[%clk 0:03:02.3]} 8...
dxc6 {[%clk 0:02:49.3]} 9. Bc4 {[%clk 0:03:01.4]} 9... Qe7+ {[%clk 0:02:44.5]}
10. Kd1 {[%clk 0:02:59.9]} 10... O-O {[%clk 0:02:44.4]} 11. Re1 {[%clk
0:02:59.5]} 11... Qd7 {[%clk 0:02:37]} 12. g4 {[%clk 0:02:47.5]} 12... a5 {[%clk
0:02:15.8]} 13. a3 {[%clk 0:02:31.9]} 13... Bc5 {[%clk 0:02:05.5]} 14. a4 {[%clk
0:02:13.9]} 14... Qd4 {[%clk 0:01:29.8]} 15. Re4 {[%clk 0:01:23.1]} 15... Qxf2
{[%clk 0:01:23.2]} 16. Qxf2 {[%clk 0:01:05.3]} 16... Bxf2 {[%clk 0:01:24.1]} 17.
b3 {[%clk 0:00:53.5]} 17... b5 {[%clk 0:00:57]} 18. axb5 {[%clk 0:00:43.7]}
18... cxb5 {[%clk 0:00:57.9]} 19. Bd5 {[%clk 0:00:17.1]} 19... Ra6 {[%clk
0:00:58.2]} 20. Bb2 {[%clk 0:00:14.8]} 20... c6 {[%clk 0:00:31.5]} 21. Rf4
{[%clk 0:00:14.5]} 21... Bg3 {[%clk 0:00:27.5]} 22. Rf3 {[%clk 0:00:14.8]} 22...
Bd6 {[%clk 0:00:27.3]} 23. Be4 {[%clk 0:00:14.9]} 23... Be6 {[%clk 0:00:27.3]}
24. d3 {[%clk 0:00:12.6]} 24... a4 {[%clk 0:00:27.3]} 25. bxa4 {[%clk
0:00:11.4]} 25... bxa4 {[%clk 0:00:28.2]} 26. c4 {[%clk 0:00:09.1]} 26... a3
{[%clk 0:00:26.7]} 27. Bc3 {[%clk 0:00:09.4]} 27... Rb8 {[%clk 0:00:20.8]} 28.
Kc2 {[%clk 0:00:09.8]} 28... c5 {[%clk 0:00:17.8]} 29. Rff1 {[%clk 0:00:08.6]}
29... f6 {[%clk 0:00:12.8]} 30. Rg1 {[%clk 0:00:08]} 30... h6 {[%clk 0:00:12.6]}
31. h4 {[%clk 0:00:08.3]} 31... Bd7 {[%clk 0:00:13.2]} 32. g5 {[%clk 0:00:04.7]}
32... hxg5 {[%clk 0:00:12.3]} 33. hxg5 {[%clk 0:00:05.6]} 33... fxg5 {[%clk
0:00:09.2]} 34. Bd5+ {[%clk 0:00:05.7]} 34... Kf8 {[%clk 0:00:09.1]} 35. Raf1+
{[%clk 0:00:06]} 35... Ke8 {[%clk 0:00:09.2]} 36. Rxg5 {[%clk 0:00:05.4]} 36...
a2 {[%clk 0:00:08.1]} 37. Rxg7 {[%clk 0:00:05.4]} 37... Kd8 {[%clk 0:00:04.7]}
38. Rff7 {[%clk 0:00:01.7]} 38... Ba4+ {[%clk 0:00:02.6]} 39. Kd2 {[%clk
0:00:01.5]} 39... Be8 {[%clk 0:00:03]} 40. Bf6+ {[%clk 0:00:01.9]} 1-0

[Event "Early-Titled-Tuesday-Blitz-September-12-2023"]
[Site "Chess.com"]
[Date "2023.09.12"]
[Round "7"]
[White "AlexanderL"]
[Black "mishanick"]
[Result "1/2-1/2"]
[WhiteElo "2865"]
[BlackElo "3068"]
[TimeControl "180+1"]
[EndTime "9:18:20 PDT"]
[Termination "Game drawn by repetition"]

1. Nf3 {[%clk 0:03:00.9]} 1... d5 {[%clk 0:02:59.3]} 2. e3 {[%clk 0:03:00.4]}
2... c5 {[%clk 0:02:59]} 3. b3 {[%clk 0:02:59.7]} 3... Nc6 {[%clk 0:02:58.9]} 4.
Bb2 {[%clk 0:03:00]} 4... a6 {[%clk 0:02:59.1]} 5. d4 {[%clk 0:02:57.1]} 5...
Nf6 {[%clk 0:02:58.5]} 6. dxc5 {[%clk 0:02:53.6]} 6... e6 {[%clk 0:02:58.6]} 7.
c4 {[%clk 0:02:51.4]} 7... Bxc5 {[%clk 0:02:56]} 8. cxd5 {[%clk 0:02:47.6]} 8...
exd5 {[%clk 0:02:51.8]} 9. Be2 {[%clk 0:02:47.6]} 9... O-O {[%clk 0:02:51.4]}
10. O-O {[%clk 0:02:47.6]} 10... Bg4 {[%clk 0:02:52.1]} 11. h3 {[%clk
0:02:46.5]} 11... Bh5 {[%clk 0:02:51.5]} 12. Nc3 {[%clk 0:02:46.5]} 12... Re8
{[%clk 0:02:40.7]} 13. Nh4 {[%clk 0:02:44.6]} 13... Bxe2 {[%clk 0:02:24.6]} 14.
Nxe2 {[%clk 0:02:44.1]} 14... Ne4 {[%clk 0:01:40.3]} 15. Nf3 {[%clk 0:02:39.3]}
15... Qd6 {[%clk 0:01:36.9]} 16. Ned4 {[%clk 0:02:33.3]} 16... Qg6 {[%clk
0:01:30.2]} 17. Rc1 {[%clk 0:02:28.4]} 17... Ba7 {[%clk 0:01:26.4]} 18. Nxc6
{[%clk 0:02:24.3]} 18... bxc6 {[%clk 0:01:26.1]} 19. Ne5 {[%clk 0:02:24.5]}
19... Qg5 {[%clk 0:00:54.2]} 20. Nxc6 {[%clk 0:02:24.1]} 20... Nxf2 {[%clk
0:00:54.4]} 21. Rxf2 {[%clk 0:02:23.8]} 21... Bxe3 {[%clk 0:00:55.1]} 22. Rc2
{[%clk 0:02:13]} 22... Re4 {[%clk 0:00:53.2]} 23. Nd4 {[%clk 0:02:05.3]} 23...
Rae8 {[%clk 0:00:51.8]} 24. Nf3 {[%clk 0:02:04.9]} 24... Qg3 {[%clk 0:00:49.9]}
25. Kf1 {[%clk 0:02:04.2]} 25... d4 {[%clk 0:00:24.5]} 26. Rce2 {[%clk
0:01:51.2]} 26... Bxf2 {[%clk 0:00:23.4]} 27. Rxf2 {[%clk 0:01:50.4]} 27... h6
{[%clk 0:00:23.3]} 28. Bxd4 {[%clk 0:01:44.8]} 28... Rd8 {[%clk 0:00:21]} 29.
Qa1 {[%clk 0:01:42]} 29... Rexd4 {[%clk 0:00:18.3]} 30. Nxd4 {[%clk 0:01:41]}
30... Qd3+ {[%clk 0:00:19]} 31. Kg1 {[%clk 0:01:36.1]} 31... Rxd4 {[%clk
0:00:19.5]} 32. Qe1 {[%clk 0:01:34.4]} 32... Qg6 {[%clk 0:00:19.4]} 33. Qe8+
{[%clk 0:01:32.2]} 33... Kh7 {[%clk 0:00:19.9]} 34. Qxf7 {[%clk 0:01:29.7]}
34... Qd6 {[%clk 0:00:18.2]} 35. Qf5+ {[%clk 0:01:28.7]} 35... Kh8 {[%clk
0:00:17.1]} 36. Qc8+ {[%clk 0:01:28.7]} 36... Kh7 {[%clk 0:00:17.8]} 37. Qc2+
{[%clk 0:01:28.8]} 37... Kg8 {[%clk 0:00:18.4]} 38. Rf1 {[%clk 0:01:22.7]} 38...
Rd2 {[%clk 0:00:17.7]} 39. Qc8+ {[%clk 0:01:22.8]} 39... Kh7 {[%clk 0:00:18.1]}
40. Qf5+ {[%clk 0:01:23.5]} 40... Kh8 {[%clk 0:00:18.6]} 41. Qf8+ {[%clk
0:01:18.9]} 41... Kh7 {[%clk 0:00:18]} 42. Qxd6 {[%clk 0:01:18.6]} 42... Rxd6
{[%clk 0:00:18.9]} 43. Rf5 {[%clk 0:01:17.1]} 43... Kg6 {[%clk 0:00:17.5]} 44.
Ra5 {[%clk 0:01:17.1]} 44... Rf6 {[%clk 0:00:17.9]} 45. b4 {[%clk 0:01:16.8]}
45... h5 {[%clk 0:00:18.1]} 46. h4 {[%clk 0:01:15.2]} 46... Kh6 {[%clk
0:00:18.3]} 47. Kh2 {[%clk 0:01:14.5]} 47... g6 {[%clk 0:00:18.8]} 48. Kh3
{[%clk 0:01:12.4]} 48... Kg7 {[%clk 0:00:18.6]} 49. g3 {[%clk 0:01:12.3]} 49...
Kh6 {[%clk 0:00:19]} 50. a4 {[%clk 0:01:12.3]} 50... Kg7 {[%clk 0:00:19.2]} 51.
Rc5 {[%clk 0:01:12.4]} 51... Rd6 {[%clk 0:00:17.1]} 52. a5 {[%clk 0:01:08.9]}
52... Rd4 {[%clk 0:00:16.3]} 53. Rc7+ {[%clk 0:01:08.3]} 53... Kh6 {[%clk
0:00:14.8]} 54. Rb7 {[%clk 0:01:08.9]} 54... Rd2 {[%clk 0:00:14.5]} 55. Rb6
{[%clk 0:01:06.3]} 55... Rb2 {[%clk 0:00:14.8]} 56. Rxa6 {[%clk 0:00:56.6]}
56... Rxb4 {[%clk 0:00:14.9]} 57. Rb6 {[%clk 0:00:56.9]} 57... Ra4 {[%clk
0:00:14.9]} 58. a6 {[%clk 0:00:57.1]} 58... Ra2 {[%clk 0:00:15.5]} 59. Rc6
{[%clk 0:00:56]} 59... Kg7 {[%clk 0:00:14.6]} 60. Rc7+ {[%clk 0:00:56.4]} 60...
Kf6 {[%clk 0:00:15]} 61. a7 {[%clk 0:00:56.7]} 61... Ke6 {[%clk 0:00:14.4]} 62.
Rb7 {[%clk 0:00:56]} 62... Kf6 {[%clk 0:00:13.9]} 63. Rh7 {[%clk 0:00:55.2]}
63... Kf5 {[%clk 0:00:12.5]} 64. Rb7 {[%clk 0:00:50.3]} 64... Kf6 {[%clk
0:00:11.3]} 65. Rb6+ {[%clk 0:00:50.4]} 65... Kf5 {[%clk 0:00:11.7]} 66. Rb7
{[%clk 0:00:50.1]} 66... Kf6 {[%clk 0:00:10]} 1/2-1/2